Cogmind - Beta 14 *** ADVENTURER MODE // 2024.08.08 @ 19:02:17 Player: Bob Result: Self-destructed Performance ------------- Evolutions (5) 2500 Regions Visited (11) 2200 Robots Destroyed (28) 140 Value Destroyed (754) 754 Prototype IDs (4) 80 Alien Tech Used (0) 0 Bonus (3085) 3085 TOTAL SCORE: 8759 Bonus ------- Unstable Evolution 2500 Follower Combat Kills 85 Entered DSFs 500 Cogmind --------- Core Integrity 780/1000 Matter 130/300 Energy 100/100 System Corruption 0% Temperature Cool (-82) Movement Core (50) Location -5/Factory Parts ------- > --- POWER (2) -------- (None) > --- PROPULSION (2) --- (None) > --- UTILITY (6) ------ Enhanced Optical Array Advanced Targeting Computer Advanced Targeting Computer > --- WEAPON (7) ------- (None) > --- INVENTORY (5) ---- Hardened Medium Armor Plating Peak State ------------ > --- POWER ------------ Improved Deuterium Engine Micro Nuclear Core > --- PROPULSION ------- Improved Medium Treads > --- UTILITY ---------- Cryofiber Web Enhanced Optical Array Advanced Targeting Computer Advanced Targeting Computer Improved Propulsion Shielding Improved Medium Armor Plating > --- WEAPON ----------- Advanced Assault Cannon > --- INVENTORY -------- Hardened Medium Armor Plating [Rating: 38] Favorites ----------- Power Light Ion Engine Engine Light Ion Engine Power Core Micro Nuclear Core Propulsion VTOL Module Treads Improved Medium Treads Leg Aluminum Leg Hover Unit Gravmag System Flight Unit VTOL Module Utility Advanced Targeting Computer Device Improved Cooling System Storage Small Storage Unit Processor Advanced Targeting Computer Protection Improved Propulsion Shielding Weapon Small Laser Energy Gun Small Laser Ballistic Gun Assault Rifle Ballistic Cannon Advanced Assault Cannon Slashing Weapon Chainsword Build | -11 -10 -10 -9 -9 -9 -8 -8 -7 -6 -6 -5 ------- Run | Yrd Mat Min Mat Min Exi Min Mat Fac Fac DSF Fac Slots Evolved 10 | . . . 2 . . . 2 2 2 . 2 Power 1 | . . . . . . . 1 . . . . Propulsion . | . . . . . . . . . . . . Utility 4 | . . . 1 . . . . 1 2 . . Weapon 5 | . . . 1 . . . 1 1 . . 2 Parts Attached 67 | 7 . 4 3 9 . . 2 31 2 3 6 Power 11 | 1 . 1 . 2 . . . 6 . . 1 Engine 5 | 1 . 1 . 1 . . . 1 . . 1 Core 6 | . . . . 1 . . . 5 . . . Reactor . | . . . . . . . . . . . . Propulsion 24 | 2 . 2 . 2 . . 2 13 . 2 1 Treads 1 | . . . . . . . . . . . 1 Leg 4 | 2 . . . . . . . 2 . . . Wheel . | . . . . . . . . . . . . Hover 6 | . . . . . . . . 6 . . . Flight 13 | . . 2 . 2 . . 2 5 . 2 . Utility 19 | 1 . . 1 5 . . . 7 2 . 3 Device 9 | . . . 1 5 . . . 2 . . 1 Storage 2 | 1 . . . . . . . . . . 1 Processor 5 | . . . . . . . . 4 1 . . Hackware . | . . . . . . . . . . . . Protection 3 | . . . . . . . . 1 1 . 1 Artifact . | . . . . . . . . . . . . Weapon 13 | 3 . 1 2 . . . . 5 . 1 1 Energy Gun 4 | . . . 2 . . . . 2 . . . Energy Cannon . | . . . . . . . . . . . . Ballistic Gun 4 | 3 . 1 . . . . . . . . . Ballistic Cannon 2 | . . . . . . . . 1 . . 1 Launcher . | . . . . . . . . . . . . Special Weapon . | . . . . . . . . . . . . Impact Weapon . | . . . . . . . . . . . . Slashing Weapon 3 | . . . . . . . . 2 . 1 . Piercing Weapon . | . . . . . . . . . . . . Special Melee Weapon . | . . . . . . . . . . . . Unidentified Prototypes 4 | . . . . . . . . 4 . . . Parts Lost 14 | . . . . . . . 1 5 . 1 7 Power 4 | . . . . . . . . 1 . 1 2 Propulsion 5 | . . . . . . . 1 3 . . 1 Utility 4 | . . . . . . . . 1 . . 3 Weapon 1 | . . . . . . . . . . . 1 Highest Loss Streak 7 | . . . . . . . 1 3 . 1 7 To Critical Strikes 1 | . . . . . . . . . . . 1 Average Slot Usage (%) 65 | . 85 79 56 75 77 77 60 60 53 53 55 Engine 6 | . 14 14 11 5 11 11 9 3 . . 3 Core 3 | . . . . 5 . . . 4 13 7 5 Leg 4 | . 28 22 . . . . . 2 . . . Hover 1 | . . . . . . . . 2 13 8 . Flight 10 | . . 5 22 22 22 22 15 9 . 4 . Device 9 | . . . 1 20 22 22 18 10 . . 4 Storage 2 | . 14 11 . . . . . . . . 1 Processor 8 | . . . . . . . . 14 15 20 17 Protection 2 | . . . . . . . . 1 3 6 8 Energy Gun 8 | . . . 22 22 22 22 18 4 6 4 . Ballistic Gun 4 | . 28 24 . . . . . . . . . Slashing Weapon 1 | . . . . . . . . 4 . 1 . Peak Build Rating 38 | 6 6 6 6 15 14 14 15 32 35 35 38 Average Rating 19 | 4 6 5 5 12 14 14 14 23 30 32 35 On Entrance 14 | . 6 6 4 6 14 14 14 15 27 35 33 Naked Turns . | . . . . . . . . . . . . Heaviest Build 32 | 14 14 14 6 10 8 8 8 18 17 17 32 Greatest Support 30 | 20 20 20 8 8 8 8 8 20 17 17 30 Greatest Overweight (x) 2 | 1 . . . 1 . . 1 2 . 1 1 Average Overweight (x) . | . . . . . . . . . . . . Largest Inventory Capacity 8 | 8 8 8 5 5 5 5 5 5 5 5 5 Average Capacity 5 | 7 8 7 5 5 5 5 5 5 5 5 5 Most Carried 7 | 2 6 7 5 5 5 5 5 5 5 5 5 Average Carried 4 | . 1 5 2 4 5 5 5 4 4 4 1 Final Capacity 8 | 8 8 5 5 5 5 5 5 5 5 5 5 Final Carried 6 | . 6 4 4 5 5 5 5 5 5 5 1 Class Distribution -------------------- 80% | Mutant 14% | Sprinter 4% | Scavenger-Mutant Dominant Class ---------------- Mutant | -10/Materials Mutant | -10/Mines Mutant | -9/Materials Mutant | -9/Mines Mutant | -9/Exiles Mutant | -8/Mines Sprinter | -8/Materials Mutant | -7/Factory Mutant | -6/Factory Mutant | -6/DSF Mutant | -5/Factory Resources | -11 -10 -10 -9 -9 -9 -8 -8 -7 -6 -6 -5 ----------- Run | Yrd Mat Min Mat Min Exi Min Mat Fac Fac DSF Fac Matter Collected 932 | 52 43 81 52 270 . . 54 242 . 4 134 Remotely . | . . . . . . . . . . . . Salvage Created 749 | . 76 81 93 54 . . 105 253 . . 87 Parts 60 | . 9 14 8 6 . . 6 17 . . . Haulers Intercepted 1 | . . . 1 . . . . . . . . Recyclers Shooed . | . . . . . . . . . . . . Parts Field Recycled . | . . . . . . . . . . . . Retrieved Matter . | . . . . . . . . . . . . Parts Self-Destructed . | . . . . . . . . . . . . Prevented . | . . . . . . . . . . . . Kills | -11 -10 -10 -9 -9 -9 -8 -8 -7 -6 -6 -5 ------- Run | Yrd Mat Min Mat Min Exi Min Mat Fac Fac DSF Fac Combat Hostiles Destroyed 26 | . 4 6 1 4 . . 2 6 . . 3 Melee 6 | . . . . . . . . 6 . . . Guns 17 | . 4 6 1 4 . . 2 . . . . Cannons 3 | . . . . . . . . . . . 3 Classes Destroyed 7 | . 2 . 2 . . . . 2 . . 1 Hauler 1 | . . . 1 . . . . . . . . Operator 1 | . . . . . . . . 1 . . . Swarmer 15 | . 3 6 . 4 . . . 2 . . . Grunt 5 | . 1 . . . . . . 3 . . 1 Brawler 1 | . . . . . . . . . . . 1 Sentry 4 | . . . 1 . . . 2 . . . 1 Programmer 1 | . . . . . . . . 1 . . . Best Kill Streak 4 | . 4 3 2 3 . . 1 3 . . 1 Combat Bots Only 4 | . 4 3 1 3 . . 1 3 . . 1 Max Kills in Single Turn 1 | . 1 1 1 1 . . 1 1 . . 1 Gunslinging . | . . . . . . . . . . . . Exploded . | . . . . . . . . . . . . Melee 1 | . . . . . . . . 1 . . . Uniques/NPCs Destroyed . | . . . . . . . . . . . . Combat | -11 -10 -10 -9 -9 -9 -8 -8 -7 -6 -6 -5 -------- Run | Yrd Mat Min Mat Min Exi Min Mat Fac Fac DSF Fac Hostile Shots Fired 272 | . 38 33 8 18 . . 7 74 . 6 88 Missed 79 | . 10 7 5 5 . . 3 23 . 4 22 Damage Taken 2422 | . 184 191 29 138 . . 67 637 . 89 1087 Core 653 | . 52 70 12 56 . . . 154 . 89 220 Absorbed by Shields . | . . . . . . . . . . . . Redirected to Shielding 36 | . . . . . . . . . . . 36 Ignored by Resistances 692 | . 59 63 8 42 . . 19 183 . 23 295 Core Remaining (%) 83 | 100 . 51 . . . 83 100 78 . 89 . Volleys Fired 77 | . 13 16 7 9 . . 4 3 . . 25 Largest 2 | . 2 2 2 2 . . 2 2 . . 1 Hottest 80 | . 40 40 80 80 . . 80 80 . . 48 Shots Fired 121 | . 26 24 14 18 . . 8 6 . . 25 Gun 96 | . 26 24 14 18 . . 8 6 . . . Cannon 25 | . . . . . . . . . . . 25 Launcher . | . . . . . . . . . . . . Special . | . . . . . . . . . . . . Kinetic 75 | . 26 24 . . . . . . . . 25 Thermal 46 | . . . 14 18 . . 8 6 . . . Explosive . | . . . . . . . . . . . . Electromagnetic . | . . . . . . . . . . . . Robot Hit Streak 25 | . 9 13 7 9 . . 5 3 . . 25 Robot Miss Streak 3 | . 3 2 2 2 . . 1 2 . . . Penetration Max . | . . . . . . . . . . . . Secondary Targets 2 | . 1 1 . . . . . . . . . Max Gunslinging Chain 1 | . 1 1 . . . . . . . . . Shots Hit Robots 112 | . 18 18 10 12 . . 6 23 . . 25 Core Hits 45 | . 5 7 4 6 . . 4 8 . . 11 Critical Kills 1 | . . 1 . . . . . . . . . Critical Parts Destroyed . | . . . . . . . . . . . . Critical Strikes 5 | . . 1 . . . . . 4 . . . Destroy 1 | . . 1 . . . . . . . . . Sever 4 | . . . . . . . . 4 . . . Melee Attacks 23 | . . . . . . . . 23 . . . Impact . | . . . . . . . . . . . . Slashing 23 | . . . . . . . . 23 . . . Piercing . | . . . . . . . . . . . . Sneak Attacks . | . . . . . . . . . . . . Combat Hostiles . | . . . . . . . . . . . . Follow-up Attacks . | . . . . . . . . . . . . Damage Inflicted 2163 | . 228 204 109 128 . . 67 751 . . 676 Guns 766 | . 228 204 109 128 . . 67 30 . . . Cannons 673 | . . . . . . . . . . . 673 Explosions . | . . . . . . . . . . . . Melee 721 | . . . . . . . . 721 . . . Ramming 3 | . . . . . . . . . . . 3 Kinetic 1105 | . 228 204 . . . . . . . . 673 Thermal 334 | . . . 109 128 . . 67 30 . . . Explosive . | . . . . . . . . . . . . Electromagnetic . | . . . . . . . . . . . . Impact . | . . . . . . . . . . . . Slashing 721 | . . . . . . . . 721 . . . Piercing . | . . . . . . . . . . . . Highest Corruption 3 | . . . . . . . . 3 . . . Average Corruption 2 | . . . . . . . . 2 . . . Corruption Purged . | . . . . . . . . . . . . Corruption Blocked . | . . . . . . . . . . . . Overload Shots . | . . . . . . . . . . . . Overflow Damage 2 | . . . . . . . . 2 . . . Projectiles . | . . . . . . . . . . . . Explosions . | . . . . . . . . . . . . Melee 2 | . . . . . . . . 2 . . . Knockbacks 5 | . . . . . . . . . . . 5 Impact . | . . . . . . . . . . . . Kinetic 5 | . . . . . . . . . . . 5 Secondary . | . . . . . . . . . . . . Self-Inflicted Damage 1 | . . . . . . . . . . . 1 Shots . | . . . . . . . . . . . . Rammed 1 | . . . . . . . . . . . 1 Targets Rammed 1 | . . . . . . . . . . . 1 Kicked . | . . . . . . . . . . . . Crushed . | . . . . . . . . . . . . Highest Temperature 34 | . . 13 34 . . . . . . . 33 Average Temperature 15 | . . 8 18 . . . . . . . 15 Received Heat Transfer 810 | . 36 63 9 45 . . 9 153 . . 495 Siege Activations . | . . . . . . . . . . . . Robots Corrupted . | . . . . . . . . . . . . Combat Hostiles . | . . . . . . . . . . . . Parts Fried . | . . . . . . . . . . . . Impact Corruptions . | . . . . . . . . . . . . Robots Melted . | . . . . . . . . . . . . Combat Hostiles . | . . . . . . . . . . . . Parts Melted 2 | . . . . 1 . . 1 . . . . Heat Transferred 775 | . . . 250 300 . . 150 75 . . . Parts Sabotaged . | . . . . . . . . . . . . Parts Stolen . | . . . . . . . . . . . . Parts Stripped . | . . . . . . . . . . . . Power Chain Reactions . | . . . . . . . . . . . . Alert | -11 -10 -10 -9 -9 -9 -8 -8 -7 -6 -6 -5 ------- Run | Yrd Mat Min Mat Min Exi Min Mat Fac Fac DSF Fac Peak Influence 286 | . 115 177 215 286 . . 185 171 48 34 129 Initial 75 | . . 37 58 75 . . . 72 48 29 14 Average 88 | . 51 113 116 175 . . 67 82 48 29 49 Maximum Alert Level 1 | . . . 1 1 . . . . . . . Low Security (%) 93 | 100 100 100 87 62 . 100 100 100 100 100 100 Level 1 6 | . . . 12 37 . . . . . . . Level 2 . | . . . . . . . . . . . . Level 3 . | . . . . . . . . . . . . Level 4 . | . . . . . . . . . . . . Level 5 . | . . . . . . . . . . . . High Security . | . . . . . . . . . . . . Max Security . | . . . . . . . . . . . . Squads Dispatched 6 | . 1 . . . . . . 3 . . 2 Investigation 1 | . 1 . . . . . . . . . . Extermination 1 | . . . . . . . . 1 . . . Reinforcement 4 | . . . . . . . . 2 . . 2 Assault . | . . . . . . . . . . . . Garrison . | . . . . . . . . . . . . Intercept . | . . . . . . . . . . . . Searches Triggered . | . . . . . . . . . . . . Construction Impeded . | . . . . . . . . . . . . Haulers Reinforced . | . . . . . . . . . . . . Active Scanning Responses . | . . . . . . . . . . . . Cargo Convoy Interrupts . | . . . . . . . . . . . . Stealth | -11 -10 -10 -9 -9 -9 -8 -8 -7 -6 -6 -5 --------- Run | Yrd Mat Min Mat Min Exi Min Mat Fac Fac DSF Fac Distress Signals 3 | . 1 . 1 . . . 1 . . . . Communications Jammed . | . . . . . . . . . . . . Distress Signals . | . . . . . . . . . . . . Times Spotted 69 | . 6 8 10 7 . . 10 17 . 2 9 Peak Tracking Total 7 | . 5 3 7 4 . . 6 4 . 1 5 Tactical Retreats 10 | . . . 2 1 . . 2 4 . 1 . Traps | -11 -10 -10 -9 -9 -9 -8 -8 -7 -6 -6 -5 ------- Run | Yrd Mat Min Mat Min Exi Min Mat Fac Fac DSF Fac Traps Triggered 4 | . 1 . . . . . 1 1 . 1 . Indirectly . | . . . . . . . . . . . . Trap Hack Attempts . | . . . . . . . . . . . . Triggered . | . . . . . . . . . . . . Disarmed . | . . . . . . . . . . . . Reprogrammed . | . . . . . . . . . . . . Reused . | . . . . . . . . . . . . Traps Extracted . | . . . . . . . . . . . . Installed . | . . . . . . . . . . . . Triggered . | . . . . . . . . . . . . Machines | -11 -10 -10 -9 -9 -9 -8 -8 -7 -6 -6 -5 ---------- Run | Yrd Mat Min Mat Min Exi Min Mat Fac Fac DSF Fac Machines Disabled . | . . . . . . . . . . . . Max in Single Turn . | . . . . . . . . . . . . Machines Repaired . | . . . . . . . . . . . . Machines Dismantled . | . . . . . . . . . . . . Machines Sabotaged . | . . . . . . . . . . . . Overloaded Fab Kills . | . . . . . . . . . . . . Hacking | -11 -10 -10 -9 -9 -9 -8 -8 -7 -6 -6 -5 --------- Run | Yrd Mat Min Mat Min Exi Min Mat Fac Fac DSF Fac Machines Accessed 5 | . . . . 1 1 . 1 1 1 . . Terminals 2 | . . . . . . . . 1 1 . . Fabricators . | . . . . . . . . . . . . Repair Stations 1 | . . . . . . . 1 . . . . Recycling Units . | . . . . . . . . . . . . Scanalyzers . | . . . . . . . . . . . . Garrison Access . | . . . . . . . . . . . . Total Hacks 27 | . . . . 1 23 . 1 1 1 . . Successful 27 | . . . . 1 23 . 1 1 1 . . Failed . | . . . . . . . . . . . . Catastrophic . | . . . . . . . . . . . . Database Lockouts . | . . . . . . . . . . . . Manual . | . . . . . . . . . . . . Terminals 2 | . . . . . . . . 1 1 . . Fabricators . | . . . . . . . . . . . . Repair Stations 1 | . . . . . . . 1 . . . . Recycling Units . | . . . . . . . . . . . . Scanalyzers . | . . . . . . . . . . . . Garrison Access . | . . . . . . . . . . . . Terminal Hacks 26 | . . . . 1 23 . . 1 1 . . Record 23 | . . . . . 23 . . . . . . Open Door 1 | . . . . 1 . . . . . . . Open DSF 2 | . . . . . . . . 1 1 . . Fabricator Hacks . | . . . . . . . . . . . . Repair Station Hacks 1 | . . . . . . . 1 . . . . Scan Component 1 | . . . . . . . 1 . . . . Recycling Unit Hacks . | . . . . . . . . . . . . Scanalyzer . | . . . . . . . . . . . . Garrison Access Hacks . | . . . . . . . . . . . . Unauthorized Hacks . | . . . . . . . . . . . . Terminals . | . . . . . . . . . . . . Fabricators . | . . . . . . . . . . . . Repair Stations . | . . . . . . . . . . . . Recycling Units . | . . . . . . . . . . . . Scanalyzers . | . . . . . . . . . . . . Garrison Access . | . . . . . . . . . . . . Data Cores Recovered 1 | . . . . . . . . 1 . . . Used . | . . . . . . . . . . . . Hacking Detections 1 | . . . . . . . 1 . . . . Full Trace Events . | . . . . . . . . . . . . Feedback Events . | . . . . . . . . . . . . Feedback Blocked . | . . . . . . . . . . . . Robot Schematics Acquired . | . . . . . . . . . . . . Robots Built . | . . . . . . . . . . . . Authchips . | . . . . . . . . . . . . Time . | . . . . . . . . . . . . Total Robot Build Rating . | . . . . . . . . . . . . Part Schematics Acquired . | . . . . . . . . . . . . Parts Built . | . . . . . . . . . . . . Authchips . | . . . . . . . . . . . . Time . | . . . . . . . . . . . . Total Part Build Rating . | . . . . . . . . . . . . Parts Repaired . | . . . . . . . . . . . . Time . | . . . . . . . . . . . . Parts Recycled . | . . . . . . . . . . . . Recycled Matter . | . . . . . . . . . . . . Retrieved Matter . | . . . . . . . . . . . . Retrieved Components . | . . . . . . . . . . . . Parts Scanalyzed . | . . . . . . . . . . . . Part Schematics Acquired . | . . . . . . . . . . . . Parts Damaged . | . . . . . . . . . . . . Bothacking | -11 -10 -10 -9 -9 -9 -8 -8 -7 -6 -6 -5 ------------ Run | Yrd Mat Min Mat Min Exi Min Mat Fac Fac DSF Fac Used RIF Installer . | . . . . . . . . . . . . Robots Hacked . | . . . . . . . . . . . . Non-combat . | . . . . . . . . . . . . Combat . | . . . . . . . . . . . . Robot Hacks Applied . | . . . . . . . . . . . . Relay Couplers Released . | . . . . . . . . . . . . Fabnet Peak Effective % . | . . . . . . . . . . . . Robots Rewired . | . . . . . . . . . . . . Allies Hacked . | . . . . . . . . . . . . Hacks Repelled . | . . . . . . . . . . . . Allies | -11 -10 -10 -9 -9 -9 -8 -8 -7 -6 -6 -5 -------- Run | Yrd Mat Min Mat Min Exi Min Mat Fac Fac DSF Fac Total Allies 3 | . . . . 3 . . . . . . . Largest Group 3 | . . . . 3 . . . . . . . Highest-Rated Group 40 | . . . . 40 . . . . . . . Highest-Rated Ally 16 | . . . . 16 . . . . . . . Total Orders . | . . . . . . . . . . . . Ally Attacks 19 | . . . . 19 . . . . . . . Total Damage 235 | . . . . 235 . . . . . . . Kills 4 | . . . . 4 . . . . . . . Allies Corrupted . | . . . . . . . . . . . . Allies Melted . | . . . . . . . . . . . . Intel | -11 -10 -10 -9 -9 -9 -8 -8 -7 -6 -6 -5 ------- Run | Yrd Mat Min Mat Min Exi Min Mat Fac Fac DSF Fac Robot Analysis Total . | . . . . . . . . . . . . Derelict Logs Recovered 1 | . . . . 1 . . . . . . . Drone Launches . | . . . . . . . . . . . . Drone Recoveries . | . . . . . . . . . . . . Exploration | -11 -10 -10 -9 -9 -9 -8 -8 -7 -6 -6 -5 ------------- Run | Yrd Mat Min Mat Min Exi Min Mat Fac Fac DSF Fac Turns Passed 2428 | 46 129 257 96 349 156 31 119 734 128 76 307 Spaces Moved 3612 | 29 71 218 186 561 458 91 259 1211 240 135 153 Core 6 | 6 . . . . . . . . . . . Treads 111 | . . . . . . . . . . . 111 Legs 316 | 23 71 129 . . . . . 93 . . . Wheels . | . . . . . . . . . . . . Hover 487 | . . . . . . . . 164 240 83 . Flight 2692 | . . 89 186 561 458 91 259 954 . 52 42 Fastest Speed 32 | 50 120 37 37 34 34 34 32 32 51 37 37 Average Speed 54 | 110 120 86 37 52 34 34 40 47 51 46 156 Slowest Speed 240 | 120 120 120 37 114 34 34 115 180 51 120 240 Overloaded Moves . | . . . . . . . . . . . . Propulsion Burnouts . | . . . . . . . . . . . . Robots Hopped 4 | . . . 1 1 . . . 2 . . . Cave-ins Triggered . | . . . . . . . . . . . . Exploration Rate (%) 39 | 3 20 59 22 91 81 38 28 30 4 90 7 Regions Visited 11 Branch Regions 4 Pre-discovered Areas 1 | . . . . . 1 . . . . . . Known Exits Taken 1 | . . . . . . . . . 1 . . Unknown Exits Taken 9 | 1 1 1 1 1 1 1 1 1 . . . Scrap Searched 3 | . . . . 3 . . . . . . . Spaces Dug . | . . . . . . . . . . . . Terrain Destroyed . | . . . . . . . . . . . . Melee . | . . . . . . . . . . . . Projectile . | . . . . . . . . . . . . AOE . | . . . . . . . . . . . . Terrain Rammed . | . . . . . . . . . . . . Walls Destroyed . | . . . . . . . . . . . . Machines Disabled . | . . . . . . . . . . . . Actions | -11 -10 -10 -9 -9 -9 -8 -8 -7 -6 -6 -5 --------- Run | Yrd Mat Min Mat Min Exi Min Mat Fac Fac DSF Fac Total 3931 | 43 89 266 198 596 457 90 265 1337 245 148 197 Wait 57 | . . 21 . 7 . . . 17 . 7 5 Move 3593 | 28 70 217 183 558 457 90 258 1206 239 134 153 Hop 4 | . . . 1 1 . . . 2 . . . Pick Up 35 | 7 6 2 3 4 . . . 8 2 1 2 Fast Attach 28 | . . . . 3 . . 1 19 2 2 1 Attach 24 | 7 . 2 3 2 . . . 4 . 1 5 Detach 6 | . . . . 2 . . . 4 . . . Swap 16 | . . 2 . 4 . . 1 9 . . . Drop 49 | 1 . 6 1 6 . . 1 24 2 3 5 Fire 77 | . 13 16 7 9 . . 4 3 . . 25 Melee 23 | . . . . . . . . 23 . . . Ram 1 | . . . . . . . . . . . 1 Kick . | . . . . . . . . . . . . Crush . | . . . . . . . . . . . . Escape Stasis 18 | . . . . . . . . 18 . . . Rewire . | . . . . . . . . . . . . Trap . | . . . . . . . . . . . . Miscellaneous . | . . . . . . . . . . . . Route ------- -11/Scrapyard -10/Materials -10/Mines -9/Materials -9/Mines (discovered 2 exits: *Mat / *Exi) -9/Exiles (discovered 2 exits: [*Min x2]) -8/Mines -8/Materials (discovered 2 exits: *Fac / [*Sto]) -7/Factory (discovered 2 exits: *Fac / [*Low]) -6/Factory -6/DSF -5/Factory History --------- Turn | Location | Event 13 | -11/Scrapyard | Discovered new exit (range 16) 47 | -11/Scrapyard | Entered Materials 88 | -10/Materials | Discovered new exit (range 14) 176 | -10/Materials | Entered Mines 300 | -10/Mines | Build established: Mutant 414 | -10/Mines | Discovered new exit (range 6) 433 | -10/Mines | Entered Materials 433 | -9/Materials | Evolved 2 slots: Utility x1, Weapon x1 519 | -9/Materials | Discovered new exit (range 15) 529 | -9/Materials | Entered Mines 542 | -9/Mines | Discovered new exit (range 5) 544 | -9/Mines | Assisted by bots powering up and referring to "LRC-V3" 556 | -9/Mines | Met a Derelict who couldn't figure out how to use a Trap Extractor 600 | -9/Mines | Learned Materials terminal intel 834 | -9/Mines | Found a hidden stash of uninstalled traps 875 | -9/Mines | Deemed a non-threat by the Exiles lab entrance 876 | -9/Mines | Discovered new exit (range 5) 878 | -9/Mines | Entered Exiles 888 | -9/Exiles | Discovered new exit (range 15) 892 | -9/Exiles | Met 8R-AWN 899 | -9/Exiles | Met EX-HEX 916 | -9/Exiles | Met EX-DEC 932 | -9/Exiles | Visited The Gauntlet 972 | -9/Exiles | Learned location of Zion (-6) 992 | -9/Exiles | Discovered new exit (range 12) 1013 | -9/Exiles | Met EX-BIN 1034 | -9/Exiles | Entered Mines 1061 | -8/Mines | Discovered new exit (range 13) 1065 | -8/Mines | Entered Materials 1065 | -8/Materials | Evolved 2 slots: Power x1, Weapon x1 1065 | -8/Materials | Discovered new exit (range 7) 1066 | -8/Materials | Loaded intel: 9 terminal locations 1164 | -8/Materials | Discovered new exit (range 9) 1184 | -8/Materials | Entered Factory 1184 | -7/Factory | Evolved 2 slots: Utility x1, Weapon x1 1391 | -7/Factory | Discovered new exit (range 9) 1423 | -7/Factory | Build established: Sprinter 1540 | -7/Factory | Lost 3 parts (1p1n1u) 1781 | -7/Factory | Build established: Mutant 1912 | -7/Factory | Discovered new exit (range 3) 1918 | -7/Factory | Entered another Factory area 1918 | -6/Factory | Evolved 2 slots: Utility x2 2046 | -6/Factory | Identified exit to DSF 2046 | -6/Factory | Entered DSF 2085 | -6/DSF | Additional patrols routed to DSF 2114 | -6/DSF | Discovered new exit (range 17) 2122 | -6/DSF | Entered Factory 2122 | -5/Factory | Evolved 2 slots: Weapon x2 2429 | -5/Factory | Self-destructed Last Messages --------------- 02417_ Penetrated by Slug. 02418_ G-50 Soldier destroyed. 02420_ G-50 Soldier knocked back. 02420_ Adv. Assault Cannon destroyed. 02420_ Slug penetrates Wall. 02420_ K-01 Serf collects debris. 02422_ Acquired 16 matter. 02423_ Imp. Medium Armor Plating destroyed. 02423_ Penetrated by Slug. 02423_ Imp. Deuterium Engine destroyed. 02423_ Acquired 14 matter. 02423_ K-01 Serf collects debris. 02426_ Mic. Nuclear Core destroyed. 02427_ Imp. Medium Treads destroyed. 02428_ Slammed into Y-64 Sentinel. 02428_ Destabilizing: System interference. 02428_ Enh. Optical Array temporarily disabled. 02429_ Acquired 9 matter. 02429_ Penetrated by Slug. 02429_ Cryofiber Web destroyed. Map ----- +----------------------------------------------------+ | ?????????????????????????????????????????????????? | | ?????????????????????????????????????????????????? | | ?????????????????????????????????????????????????? | | ?????????????????????????????????????????????????? | | ?????????????????????????????????????????????????? | | ??????????????????????????????????????????+??????? | | ?????????????????????????????????????????# ??????? | | ?????????????????????????????????????????# #?????? | | ?????????????????????????????????+??????## #?????? | | ????????????????????????????????? ?????? #?????? | | ????????????????????????????????? ?????? #?????? | | ????????????????????????????????? ??????? #?????? | | ????????????????????????????????? ??????? +?????? | | ????????????????????????????????? ???????# #?????? | | ????????????????????????????????? #??????# #?????? | | ?????????????????????############ #?######+####### | | ?????????????????????+ """"""" # #?# = # | | ?????????????????????# """Y""" ## ### + | | ?????????????????????# ## + # | | ?????????????????????# """ ! ! ## # # | | ?????????????????????# """ ## # # | | ?????????????????????# """ !!!## + # | | ?????????????????????? !!!?# #?# # | | ???????????????????????? !???# #?# # | | ????????????????????????##g##???# #?# # | | ???????????##### ######@ ##### ### # | | ???# + % % gY% * ! ## # | | ???????????# T## %####;# ###t= ## # | | ?????????????????????# ######?# % ########+###### | | ?????????????????????##???????# | | ???????????????????????????#### | | ???????????????????????????# | | ????????????????????????####+##### """ """ "" | | ????????????????????????# # """ """ "" | | ????????????????????????# # "" """ """ "" | | ????????????????????????# """" # """ | | ????????????????????????# """" # "F """ """ "" | | ????????????????????????# """" + """ """ """ "" | | ????????????????????????# """" # "" """ """ "" | | ????????????????????????# # | | ????????????????????????# # | | ????????????????????????# # ######## | | ????????????????????????########## ! #??????? | | ?????????????????????????????????#! #??????? | | ?????????????????????????????????# #??????? | | ?????????????????????????????????# ???????? | | ?????????????????????????????????# #??????? | | ?????????????????????????????????# ???????? | | ?????????????????????????????????# ???????? | | ?????????????????????????????????? ???????? | +----------------------------------------------------+ Best States ------------- Heat Dissipation 75 Energy Generation 26 Energy Capacity 340 Matter Stores 300 Matter Capacity 400 Sight Range 22 Terrain Scan Density 10 Base Temperature (-) 100 Armor Coverage 225 Resistance: KI 20 Resistance: TH 20 Resistance: EX 20 Resistance: EM 20 Resistance: I 20 Resistance: S 20 Resistance: P 20 Propulsion Shielding 66 Melee Speed Boost 20 Evasion (%) 71 Targeting Accuracy 16 Recoil Reduction 1 Offensive Hacking 10 Item Schematics ----------------- None Robot Schematics ------------------ None Fabricated ------------ Nothing Alien Tech Used ----------------- None Achievements -------------- None Challenges ------------ Unstable Evolution Game ------ Seed DeuteriumActuatorBooster Manual? 0 Play Time 00:45:00 Cumulative 179.7 hours Start 2024.08.08 @ 18:19:17 End 2024.08.08 @ 19:02:17 Sessions 1 Manual Loads 0 Difficulty Adventurer Special Mode None Game No. 281 Rogue 241 Adventurer 40 Explorer 0 Win Type - Total 4 Types 1/1/0/2/0/0/0/0/0 Lore% 28 Gallery% 54 Achievement% 52 Wizard Run 0 Options --------- Layout 1 ASCII 0 Keyboard 0 Movement Arrows Keybinds 0 Fullscreen 1 Font 16/SmallcapsGlow Map View 55x38 Zoom Use 0% Tactical HUD 1 Map Filters NONE Filters NONE Steam X RUN: caad23bb-eb07-4734-936f-ce72da572df6